fUSD/lending_fUSD_20250630
["ID","MTS","AMOUNT","RATE_DAILY","PERIOD"]
[368647909,1751266232438,-500.0,0.00015191,2]
[368647910,1751266232447,-500.0,0.00015191,2]
[368647911,1751266232456,-500.0,0.00015191,2]
[368647912,1751266232466,-512.97612015,0.00015191,2]
[368647913,1751266232475,-597.95834492,0.00015191,2]
[368647914,1751266232484,-500.0,0.00015191,2]
[368647915,1751266232494,-229.33987287,0.00015191,2]
[368647916,1751266232504,-151356.9379473,0.00015192,2]
[368647917,1751266232513,-151.0,0.00015192,2]
[368647918,1751266232522,-151.0,0.00015192,2]
[368647919,1751266232531,-151.0,0.00015192,2]
[368647920,1751266232540,-199.32008,0.00015192,2]
[368647921,1751266232549,-199.32008,0.00015192,2]
[368647922,1751266232558,-151.0,0.00015192,2]
[368647923,1751266232568,-151.0,0.00015192,2]
[368647924,1751266232576,-151.0,0.00015192,2]
[368647925,1751266232585,-156.466168,0.00015192,2]
[368647926,1751266232594,-153.963138,0.00015192,2]
[368647927,1751266232603,-272.11,0.00015202,2]
[368647928,1751266232612,-1589.92804,0.000153,2]
[368647929,1751266232622,-1000.0,0.000154,3]
[368647930,1751266232631,-223.0,0.00015608,2]
[368647931,1751266232640,-168.0,0.0001564,2]
[368647932,1751266232650,-168.0,0.00015648,2]
[368647933,1751266232659,-175.161206,0.00015655,3]
[368647934,1751266232669,-150.81,0.00015689,2]
[368647935,1751266232678,-150.81,0.00015708,2]
[368647936,1751266232687,-168.0,0.00015717,2]
[368647937,1751266232696,-150.81,0.00015728,2]
[368647938,1751266232705,-150.81,0.00015748,2]
[368647939,1751266232714,-150.81,0.00015767,2]
[368647940,1751266232724,-301.39,0.0001577,2]
[368647941,1751266232733,-171.21,0.0001577,2]
[368647942,1751266232741,-1589.92804,0.000158,2]
[368647943,1751266232750,-500.0,0.00015892,2]
[368647944,1751266232759,-500.0,0.00015892,2]
[368647945,1751266232768,-254.02352887,0.00015892,2]
[368647946,1751266232777,-500.0,0.00015892,2]
[368647947,1751266232786,-500.0,0.00015892,2]
[368647948,1751266232795,-500.0,0.00015892,2]
[368647949,1751266232805,-150.0,0.00015892,2]
[368647950,1751266232814,-213.76632214,0.00015892,2]
[368647951,1751266232823,-223.0,0.00015903,2]
[368647952,1751266232831,-167.82778374,0.00015957,2]
[368647953,1751266232840,-10000.0,0.00016,2]
[368647954,1751266232849,-151.0,0.00016,2]
[368647955,1751266232859,-151.0,0.00016,2]
[368647956,1751266232868,-151.0,0.00016,2]
[368647957,1751266232877,-151.0,0.00016,2]
[368647958,1751266232886,-151.0,0.00016,2]
[368647959,1751266232896,-151.0,0.00016,2]
[368647960,1751266232907,-500.0,0.00016,2]
[368647961,1751266232916,-500.0,0.00016,2]
[368647962,1751266232925,-150.41216176,0.00016,2]
[368647963,1751266232936,-496.0,0.00016,2]
[368647964,1751266232947,-500.0,0.00016,2]
[368647965,1751266232957,-2021.0,0.00016,2]
[368647966,1751266232967,-2650.0,0.00016,2]
[368647967,1751266232976,-500.0,0.00016,2]
[368647968,1751266233231,-835.8297818,0.00016,3]
[368647969,1751266233308,-8049.33621058,0.0001606,2]
[368647970,1751266233317,-151.0,0.0001606,2]
[368647971,1751266233327,-1056.52963029,0.00016079,2]
[368647972,1751266233337,-151.0,0.00016079,2]
[368647973,1751266233347,-207.4,0.00016079,2]
[368647974,1751266233356,-200.0,0.00016079,2]
[368647975,1751266233365,-150.0,0.00016079,2]
[368647976,1751266233375,-531.0,0.000161,2]
[368647977,1751266233384,-223.0,0.00016126,2]
[368647978,1751266233394,-500.0,0.00016166,2]
[368647979,1751266233405,-500.0,0.00016166,2]
[368647980,1751266233414,-500.0,0.00016166,2]
[368647981,1751266233424,-500.0,0.00016166,2]
[368647982,1751266233438,-500.0,0.00016166,2]
[368647983,1751266233447,-206.10274209,0.00016166,2]
[368647984,1751266233457,-150.0,0.00016236,2]
[368647985,1751266233467,-500.0,0.00016236,2]
[368647986,1751266233477,-150.0,0.00016236,2]
[368647987,1751266233487,-151.0,0.00016236,2]
[368647988,1751266233497,-151.0,0.00016236,2]
[368647989,1751266233506,-199.32008,0.00016236,2]
[368647990,1751266233517,-199.32008,0.00016236,2]
[368647991,1751266233526,-151.0,0.00016236,2]
[368647992,1751266233535,-169.375602,0.00016236,2]
[368647993,1751266233544,-223.0,0.00016236,2]
[368647994,1751266233554,-293.412165,0.00016263,2]
[368647995,1751266233563,-500.0,0.00016274,2]
[368647996,1751266233572,-508.34696784,0.00016274,2]
[368647997,1751266233582,-496.0,0.00016274,2]
[368647998,1751266233591,-500.0,0.00016274,2]
[368647999,1751266233601,-2021.0,0.00016274,2]
[368648000,1751266233610,-2650.0,0.00016274,2]
[368648001,1751266233620,-500.0,0.00016274,2]
[368648002,1751266233629,-1589.92804,0.000163,2]
[368648003,1751266233639,-175.161206,0.00016311,3]
[368648004,1751266233648,-1313.1535,0.00016338,2]
[368648005,1751266233659,-150.0,0.00016353,2]
[368648006,1751266233669,-180.13367036,0.00016428,2]
[368648007,1751266233679,-151.68,0.00016428,2]
[368648008,1751266233688,-713.0,0.00016428,2]
[368648009,1751266233698,-155.195,0.00016437,2]
[368648010,1751266233708,-713.0,0.00016438,2]
[368648011,1751266233719,-490.0,0.00016438,2]
[368648012,1751266233728,-601.3,0.00016438,2]
[368648013,1751266233738,-842.52,0.00016438,2]
[368648014,1751266233748,-490.0,0.00016438,2]
[368648015,1751266233757,-494.56455781,0.00016438,2]
[368648016,1751266233767,-490.0,0.00016438,2]
[368648017,1751266233777,-542.22,0.00016438,2]
[368648018,1751266233786,-809.0,0.00016438,2]
[368648019,1751266233796,-490.0,0.00016438,2]
[368648020,1751266233805,-539.72,0.00016438,2]
[368648021,1751266233815,-490.0,0.00016438,2]
[368648022,1751266233824,-490.0,0.00016438,2]
[368648023,1751266233834,-473.78134674,0.00016438,2]
[368648024,1751266233843,-595.47533502,0.00016438,2]
[368648025,1751266233853,-490.0,0.00016438,2]
[368648026,1751266233862,-490.0,0.00016438,2]
[368648027,1751266233872,-1146.72,0.00016438,2]
[368648028,1751266233881,-490.0,0.00016438,2]
[368648029,1751266233891,-1163.13,0.00016438,2]
[368648030,1751266233901,-490.0,0.00016438,2]
[368648031,1751266233911,-490.0,0.00016438,2]
[368648032,1751266233921,-847.77,0.00016438,2]
[368648033,1751266233930,-490.0,0.00016438,2]
[368648034,1751266233940,-665.9,0.00016438,2]
[368648035,1751266233950,-490.0,0.00016438,2]
[368648036,1751266233959,-492.86962583,0.00016438,2]
[368648037,1751266233970,-490.0,0.00016438,2]
[368648038,1751266233980,-490.0,0.00016438,2]
[368648039,1751266233990,-713.15,0.00016438,2]
[368648040,1751266233999,-491.48116399,0.00016438,2]
[368648041,1751266234009,-490.0,0.00016438,2]
[368648042,1751266234019,-1512.08,0.00016438,2]
[368648043,1751266234028,-490.0,0.00016438,2]
[368648044,1751266234038,-490.0,0.00016438,2]
[368648045,1751266234047,-490.0,0.00016438,2]
[368648046,1751266234056,-761.84,0.00016438,2]
[368648047,1751266234066,-490.0,0.00016438,2]
[368648048,1751266234076,-3984.865458,0.00016438,2]
[368648049,1751266234085,-157.608669,0.00016438,2]
[368648050,1751266234095,-490.0,0.00016438,2]
[368648051,1751266234104,-882.34,0.00016438,2]
[368648052,1751266234114,-527.859266,0.00016438,2]
[368648053,1751266234123,-154.8076,0.00016438,2]
[368648054,1751266234134,-490.0,0.00016438,2]
[368648055,1751266234144,-490.0,0.00016438,2]
[368648056,1751266234157,-490.0,0.00016438,2]
[368648057,1751266234167,-770.57,0.00016438,2]
[368648058,1751266234177,-575.48,0.00016438,2]
[368648059,1751266234186,-490.0,0.00016438,2]
[368648060,1751266234197,-490.0,0.00016438,2]
[368648061,1751266234207,-490.0,0.00016438,2]
[368648062,1751266234216,-4046.033971,0.00016438,2]
[368648063,1751266234226,-767.46,0.00016438,2]
[368648064,1751266234236,-166.666666,0.00016438,2]
[368648065,1751266234246,-490.0,0.00016438,2]
[368648066,1751266234255,-601.24364337,0.00016438,2]
[368648067,1751266234265,-490.0,0.00016438,2]
[368648068,1751266234275,-490.0,0.00016438,2]
[368648069,1751266234285,-4393.727657,0.00016438,2]
[368648070,1751266234295,-490.0,0.00016438,2]
[368648071,1751266234304,-490.0,0.00016438,2]
[368648072,1751266234314,-490.0,0.00016438,2]
[368648073,1751266234323,-490.0,0.00016438,2]
[368648074,1751266234333,-490.0,0.00016438,2]
[368648075,1751266234342,-490.0,0.00016438,2]
[368648076,1751266234352,-521.16,0.00016438,2]
[368648077,1751266234362,-490.0,0.00016438,2]
[368648078,1751266234371,-490.0,0.00016438,2]
[368648079,1751266234381,-892.22,0.00016438,2]
[368648080,1751266234390,-510.62,0.00016438,2]
[368648081,1751266234399,-1053.83,0.00016438,2]
[368648082,1751266234409,-677.9,0.00016438,2]
[368648083,1751266234418,-490.0,0.00016438,2]
[368648084,1751266234430,-508.25,0.00016438,2]
[368648085,1751266234440,-520.71,0.00016438,2]
[368648086,1751266234450,-490.0,0.00016438,2]
[368648087,1751266234459,-610.08,0.00016438,2]
[368648088,1751266234468,-490.0,0.00016438,2]
[368648089,1751266234478,-490.0,0.00016438,2]
[368648090,1751266234487,-1041.29,0.00016438,2]
[368648091,1751266234496,-1669.71,0.00016438,2]
[368648092,1751266234507,-574.76,0.00016438,2]
[368648093,1751266234516,-490.0,0.00016438,2]
[368648094,1751266234526,-1533.35,0.00016438,2]
[368648095,1751266234536,-1355.47,0.00016438,2]
[368648096,1751266234545,-639.37,0.00016438,2]
[368648097,1751266234554,-490.0,0.00016438,2]
[368648098,1751266234564,-490.0,0.00016438,2]
[368648099,1751266234573,-490.0,0.00016438,2]
[368648100,1751266234583,-553.94,0.00016438,2]
[368648101,1751266234592,-490.0,0.00016438,2]
[368648102,1751266234601,-500.0,0.00016438,2]
[368648103,1751266234610,-490.0,0.00016438,2]
[368648104,1751266234620,-490.0,0.00016438,2]
[368648105,1751266234630,-151.0,0.00016438,2]
[368648106,1751266234639,-151.0,0.00016438,2]
[368648107,1751266234649,-151.0,0.00016438,2]
[368648108,1751266234660,-151.0,0.00016438,2]
[368648109,1751266234669,-490.0,0.00016438,2]
[368648110,1751266234678,-490.0,0.00016438,2]
[368648111,1751266234688,-724.56,0.00016438,2]
[368648112,1751266234698,-490.0,0.00016438,2]
[368648113,1751266234707,-490.0,0.00016438,2]
[368648114,1751266234716,-490.0,0.00016438,2]
[368648115,1751266234726,-490.0,0.00016438,2]
[368648116,1751266234735,-1315.18,0.00016438,2]
[368648117,1751266234744,-512.68,0.00016438,2]
[368648118,1751266234753,-684.92,0.00016438,2]
[368648119,1751266234763,-490.0,0.00016438,2]
[368648120,1751266234772,-490.0,0.00016438,2]
[368648121,1751266234782,-1021.69,0.00016438,2]
[368648122,1751266234791,-497.99,0.00016438,2]
[368648123,1751266234801,-490.0,0.00016438,2]
[368648124,1751266234810,-490.0,0.00016438,2]
[368648125,1751266234819,-557.78,0.00016438,2]
[368648126,1751266234829,-490.0,0.00016438,2]
[368648127,1751266234838,-490.0,0.00016438,2]
[368648128,1751266234848,-490.0,0.00016438,2]
[368648129,1751266234857,-781.89,0.00016438,2]
[368648130,1751266234866,-699.84,0.00016438,2]
[368648131,1751266234875,-993.33,0.00016438,2]
[368648132,1751266234884,-575.73,0.00016438,2]
[368648133,1751266234893,-490.0,0.00016438,2]
[368648134,1751266234903,-490.0,0.00016438,2]
[368648135,1751266234913,-629.3,0.00016438,2]
[368648136,1751266234922,-638.16,0.00016438,2]
[368648137,1751266234932,-764.32,0.00016438,2]
[368648138,1751266234942,-490.0,0.00016438,2]
[368648139,1751266234951,-492.31717178,0.00016438,2]
[368648140,1751266234961,-689.27,0.00016438,2]
[368648141,1751266234970,-490.0,0.00016438,2]
[368648142,1751266234979,-490.0,0.00016438,2]
[368648143,1751266234989,-1003.02,0.00016438,2]
[368648144,1751266234998,-941.88,0.00016438,2]
[368648145,1751266235007,-490.0,0.00016438,2]
[368648146,1751266235018,-490.0,0.00016438,2]
[368648147,1751266235027,-910.22,0.00016438,2]
[368648148,1751266235037,-490.0,0.00016438,2]
[368648149,1751266235046,-490.0,0.00016438,2]
[368648150,1751266235055,-493.09336412,0.00016438,2]
[368648151,1751266235064,-490.0,0.00016438,2]
[368648152,1751266235073,-151.0,0.00016438,2]
[368648153,1751266235083,-490.0,0.00016438,2]
[368648154,1751266235092,-151.0,0.00016438,2]
[368648155,1751266235101,-567.61,0.00016438,2]
[368648156,1751266235110,-508.52713789,0.00016438,2]
[368648157,1751266235119,-206.62666,0.00016438,2]
[368648158,1751266235129,-490.0,0.00016438,2]
[368648159,1751266235138,-490.0,0.00016438,2]
[368648160,1751266235147,-1089.97,0.00016438,2]
[368648161,1751266235160,-490.0,0.00016438,2]
[368648162,1751266235170,-500.0,0.00016438,2]
[368648163,1751266235180,-490.0,0.00016438,2]
[368648164,1751266235189,-418.92845179,0.00016438,2]
[368648165,1751266235199,-151.0,0.00016438,2]
[368648166,1751266235208,-644.75,0.00016438,2]
[368648167,1751266235217,-151.0,0.00016438,2]
[368648168,1751266235227,-490.0,0.00016438,2]
[368648169,1751266235236,-490.0,0.00016438,2]
[368648170,1751266235246,-490.0,0.00016438,2]
[368648171,1751266235255,-490.0,0.00016438,2]
[368648172,1751266235265,-490.0,0.00016438,2]
[368648173,1751266235275,-1633.36,0.00016438,2]
[368648174,1751266235284,-490.0,0.00016438,2]
[368648175,1751266235294,-490.0,0.00016438,2]
[368648176,1751266235303,-490.0,0.00016438,2]
[368648177,1751266235313,-2583.92,0.00016438,2]
[368648178,1751266235322,-490.0,0.00016438,2]
[368648179,1751266235332,-2042.63,0.00016438,2]
[368648180,1751266235341,-658.62,0.00016438,2]
[368648181,1751266235350,-490.0,0.00016438,2]
[368648182,1751266235359,-492.83201767,0.00016438,2]
[368648183,1751266235368,-570.05,0.00016438,2]
[368648184,1751266235377,-570.33,0.00016438,2]
[368648185,1751266235387,-2368.68,0.00016438,2]
[368648186,1751266235396,-490.0,0.00016438,2]
[368648187,1751266235408,-675.72,0.00016438,2]
[368648188,1751266235417,-490.0,0.00016438,2]
[368648189,1751266235427,-490.0,0.00016438,2]
[368648190,1751266235438,-490.0,0.00016438,2]
[368648191,1751266235447,-1470.42,0.00016438,2]
[368648192,1751266235456,-490.0,0.00016438,2]
[368648193,1751266235465,-490.0,0.00016438,2]
[368648194,1751266235475,-490.0,0.00016438,2]
[368648195,1751266235484,-2200.43,0.00016438,2]
[368648196,1751266235493,-288.1151766,0.00016438,2]
[368648197,1751266235502,-2572.39,0.00016438,2]
[368648198,1751266235513,-490.0,0.00016438,2]
[368648199,1751266235523,-151.0,0.00016438,2]
[368648200,1751266235532,-151.0,0.00016438,2]
[368648201,1751266235541,-531.52,0.00016438,2]
[368648202,1751266235550,-913.94,0.00016438,2]
[368648203,1751266235559,-490.0,0.00016438,2]
[368648204,1751266235568,-573.54,0.00016438,2]
[368648205,1751266235577,-490.0,0.00016438,2]
[368648206,1751266235586,-490.0,0.00016438,2]
[368648207,1751266235595,-610.13,0.00016438,2]
[368648208,1751266235604,-490.0,0.00016438,2]
[368648209,1751266235613,-490.0,0.00016438,2]
[368648210,1751266235622,-490.0,0.00016438,2]
[368648211,1751266235631,-490.0,0.00016438,2]
[368648212,1751266235640,-490.0,0.00016438,2]
[368648213,1751266235649,-1148.02,0.00016438,2]
[368648214,1751266235660,-490.0,0.00016438,2]
[368648215,1751266235669,-490.0,0.00016438,2]
[368648216,1751266235678,-512.42,0.00016438,2]
[368648217,1751266235688,-490.0,0.00016438,2]
[368648218,1751266235697,-1236.77,0.00016438,2]
[368648219,1751266235707,-1260.77,0.00016438,2]
[368648220,1751266235716,-498.19518273,0.00016438,2]
[368648221,1751266235725,-490.0,0.00016438,2]
[368648222,1751266235734,-490.0,0.00016438,2]
[368648223,1751266235742,-490.0,0.00016438,2]
[368648224,1751266235752,-1066.05,0.00016438,2]
[368648225,1751266235761,-490.0,0.00016438,2]
[368648226,1751266235770,-490.0,0.00016438,2]
[368648227,1751266235779,-703.01,0.00016438,2]
[368648228,1751266235788,-1883.84,0.00016438,2]
[368648229,1751266235801,-315.75222447,0.00016438,2]
[368648230,1751266235811,-583.21,0.00016438,2]
[368648231,1751266235820,-1467.22,0.00016438,2]
[368648232,1751266235829,-693.03,0.00016438,2]
[368648233,1751266235838,-527.75,0.00016438,2]
[368648234,1751266235848,-1637.65,0.00016438,2]
[368648235,1751266235857,-2559.87,0.00016438,2]
[368648236,1751266235866,-1638.11,0.00016438,2]
[368648237,1751266235876,-622.96,0.00016438,2]
[368648238,1751266235885,-490.0,0.00016438,2]
[368648239,1751266235895,-1188.65,0.00016438,2]
[368648240,1751266235905,-490.0,0.00016438,2]
[368648241,1751266235914,-490.0,0.00016438,2]
[368648242,1751266235923,-2371.97,0.00016438,2]
[368648243,1751266235933,-490.0,0.00016438,2]
[368648244,1751266235942,-490.0,0.00016438,2]
[368648245,1751266235952,-490.0,0.00016438,2]
[368648246,1751266235961,-490.0,0.00016438,2]
[368648247,1751266235971,-490.0,0.00016438,2]
[368648248,1751266235981,-2336.99,0.00016438,2]
[368648249,1751266235990,-1106.06,0.00016438,2]
[368648250,1751266235999,-1201.42,0.00016438,2]
[368648251,1751266236008,-501.4613698,0.00016438,2]
[368648252,1751266236017,-2757.1,0.00016438,2]
[368648253,1751266236026,-741.67,0.00016438,2]
[368648254,1751266236035,-833.73,0.00016438,2]
[368648255,1751266236044,-490.0,0.00016438,2]
[368648256,1751266236053,-490.0,0.00016438,2]
[368648257,1751266236064,-1713.23,0.00016438,2]
[368648258,1751266236073,-490.0,0.00016438,2]
[368648259,1751266236082,-490.0,0.00016438,2]
[368648260,1751266236092,-490.0,0.00016438,2]
[368648261,1751266236101,-882.93,0.00016438,2]
[368648262,1751266236110,-490.0,0.00016438,2]
[368648263,1751266236119,-538.78,0.00016438,2]
[368648264,1751266236128,-1322.69,0.00016438,2]
[368648265,1751266236137,-805.3,0.00016438,2]
[368648266,1751266236146,-490.0,0.00016438,2]
[368648267,1751266236156,-426.85579703,0.00016438,2]
[368648268,1751266236165,-490.0,0.00016438,2]
[368648269,1751266236174,-490.0,0.00016438,2]
[368648270,1751266236183,-491.64349967,0.00016438,2]
[368648271,1751266236192,-1295.19,0.00016438,2]
[368648272,1751266236201,-981.02,0.00016438,2]
[368648273,1751266236210,-490.0,0.00016438,2]
[368648274,1751266236219,-2402.96,0.00016438,2]
[368648275,1751266236228,-490.0,0.00016438,2]
[368648276,1751266236236,-490.0,0.00016438,2]
[368648277,1751266236245,-490.0,0.00016438,2]
[368648278,1751266236255,-490.0,0.00016438,2]
[368648279,1751266236264,-490.0,0.00016438,2]
[368648280,1751266236274,-490.0,0.00016438,2]
[368648281,1751266236283,-500.0,0.00016438,2]
[368648282,1751266236292,-159.41,0.00016438,2]
[368648283,1751266236301,-2356.89,0.00016438,2]
[368648284,1751266236311,-522.24,0.00016438,2]
[368648285,1751266236320,-490.0,0.00016438,2]
[368648286,1751266236329,-2312.0,0.00016438,2]
[368648287,1751266236339,-490.0,0.00016438,2]
[368648288,1751266236348,-490.0,0.00016438,2]
[368648289,1751266236357,-975.07,0.00016438,2]
[368648290,1751266236366,-490.0,0.00016438,2]
[368648291,1751266236375,-490.0,0.00016438,2]
[368648292,1751266236384,-1287.19,0.00016438,2]
[368648293,1751266236394,-490.0,0.00016438,2]
[368648294,1751266236405,-490.0,0.00016438,2]
[368648295,1751266236414,-490.0,0.00016438,2]
[368648296,1751266236423,-490.0,0.00016438,2]
[368648297,1751266236434,-1892.38,0.00016438,2]
[368648298,1751266236444,-1359.0,0.00016438,2]
[368648299,1751266236453,-490.0,0.00016438,2]
[368648300,1751266236462,-1107.17,0.00016438,2]
[368648301,1751266236472,-490.0,0.00016438,2]
[368648302,1751266236481,-497.1,0.00016438,2]
[368648303,1751266236491,-490.0,0.00016438,2]
[368648304,1751266236500,-490.0,0.00016438,2]
[368648305,1751266236509,-494.88,0.00016438,2]
[368648306,1751266236518,-490.0,0.00016438,2]
[368648307,1751266236528,-700.85,0.00016438,2]
[368648308,1751266236537,-2930.51,0.00016438,2]
[368648309,1751266236546,-500.0,0.00016438,2]
[368648310,1751266236556,-500.0,0.00016438,2]
[368648311,1751266236565,-2238.69,0.00016438,2]
[368648312,1751266236575,-490.0,0.00016438,2]
[368648313,1751266236584,-490.0,0.00016438,2]
[368648314,1751266236593,-1613.75,0.00016438,2]
[368648315,1751266236602,-490.0,0.00016438,2]
[368648316,1751266236611,-1054.96,0.00016438,2]
[368648317,1751266236621,-490.0,0.00016438,2]
[368648318,1751266236630,-490.0,0.00016438,2]
[368648319,1751266236639,-806.02,0.00016438,2]
[368648320,1751266236648,-490.0,0.00016438,2]
[368648321,1751266236659,-176.509831,0.00016438,2]
[368648322,1751266236668,-151.0,0.00016438,2]
[368648323,1751266236677,-510.38571339,0.00016438,2]
[368648324,1751266236688,-490.0,0.00016438,2]
[368648325,1751266236697,-631.39,0.00016438,2]
[368648326,1751266236707,-1015.43,0.00016438,2]
[368648327,1751266236716,-490.0,0.00016438,2]
[368648328,1751266236725,-692.7,0.00016438,2]
[368648329,1751266236734,-490.0,0.00016438,2]
[368648330,1751266236744,-1705.37,0.00016438,2]
[368648331,1751266236753,-2308.42,0.00016438,2]
[368648332,1751266236763,-180.0,0.00016438,2]
[368648333,1751266236772,-500.0,0.00016438,2]
[368648334,1751266236782,-490.0,0.00016438,2]
[368648335,1751266236791,-490.0,0.00016438,2]
[368648336,1751266236801,-1710.86,0.00016438,2]
[368648337,1751266236810,-1431.97,0.00016438,2]
[368648338,1751266236819,-490.0,0.00016438,2]
[368648339,1751266236828,-490.0,0.00016438,2]
[368648340,1751266236838,-490.0,0.00016438,2]
[368648341,1751266236847,-3683.13,0.00016438,2]
[368648342,1751266236855,-490.0,0.00016438,2]
[368648343,1751266236864,-575.94,0.00016438,2]
[368648344,1751266236874,-490.0,0.00016438,2]
[368648345,1751266236883,-490.0,0.00016438,2]
[368648346,1751266236892,-1315.81,0.00016438,2]
[368648347,1751266236901,-504.67,0.00016438,2]
[368648348,1751266236914,-490.0,0.00016438,2]
[368648349,1751266236923,-1307.0,0.00016438,2]
[368648350,1751266236933,-490.0,0.00016438,2]
[368648351,1751266236942,-490.0,0.00016438,2]
[368648352,1751266236951,-993.3,0.00016438,2]
[368648353,1751266236960,-490.0,0.00016438,2]
[368648354,1751266236970,-490.0,0.00016438,2]
[368648355,1751266236980,-490.0,0.00016438,2]
[368648356,1751266236989,-490.0,0.00016438,2]
[368648357,1751266236998,-743.06,0.00016438,2]
[368648358,1751266237008,-151.0,0.00016438,2]
[368648359,1751266237017,-151.0,0.00016438,2]
[368648360,1751266237026,-151.0,0.00016438,2]
[368648361,1751266237035,-3100.89,0.00016438,2]
[368648362,1751266237044,-490.0,0.00016438,2]
[368648363,1751266237054,-835.65,0.00016438,2]
[368648364,1751266237063,-490.0,0.00016438,2]
[368648365,1751266237073,-490.0,0.00016438,2]
[368648366,1751266237082,-986.29,0.00016438,2]
[368648367,1751266237092,-528.44,0.00016438,2]
[368648368,1751266237101,-490.0,0.00016438,2]
[368648369,1751266237110,-490.0,0.00016438,2]
[368648370,1751266237119,-490.0,0.00016438,2]
[368648371,1751266237128,-490.0,0.00016438,2]
[368648372,1751266237138,-490.0,0.00016438,2]
[368648373,1751266237147,-559.56,0.00016438,2]
[368648374,1751266237159,-622.86,0.00016438,2]
[368648375,1751266237169,-501.86515717,0.00016438,2]
[368648376,1751266237178,-490.0,0.00016438,2]
[368648377,1751266237188,-872.03,0.00016438,2]
[368648378,1751266237197,-766.58,0.00016438,2]
[368648379,1751266237207,-490.0,0.00016438,2]
[368648380,1751266237216,-490.0,0.00016438,2]
[368648381,1751266237226,-2848.36,0.00016438,2]
[368648382,1751266237236,-272.10528616,0.00016438,2]
[368648383,1751266237246,-490.0,0.00016438,2]
[368648384,1751266237257,-1825.75,0.00016438,2]
[368648385,1751266237266,-2281.93,0.00016438,2]
[368648386,1751266237275,-771.59,0.00016438,2]
[368648387,1751266237284,-490.0,0.00016438,2]
[368648388,1751266237294,-1312.51,0.00016438,2]
[368648389,1751266237554,-1228.48,0.00016438,2]
[368648390,1751266237564,-850.17,0.00016438,2]
[368648391,1751266237573,-490.0,0.00016438,2]
[368648392,1751266237582,-490.0,0.00016438,2]
[368648393,1751266237591,-1132.55,0.00016438,2]
[368648394,1751266237600,-490.0,0.00016438,2]
[368648395,1751266237610,-490.0,0.00016438,2]
[368648396,1751266237620,-490.0,0.00016438,2]
[368648397,1751266237630,-2890.13,0.00016438,2]
[368648398,1751266237639,-4074.06,0.00016438,2]
[368648399,1751266237649,-606.95,0.00016438,2]
[368648400,1751266237660,-2814.38,0.00016438,2]
[368648401,1751266237669,-526.3,0.00016438,2]
[368648402,1751266237679,-490.0,0.00016438,2]
[368648403,1751266237688,-614.34,0.00016438,2]
[368648405,1751266237697,-490.0,0.00016438,2]
[368648407,1751266237706,-490.0,0.00016438,2]
[368648408,1751266237716,-490.0,0.00016438,2]
[368648409,1751266237725,-2523.84,0.00016438,2]
[368648410,1751266237735,-689.02,0.00016438,2]